fUST/lending_fUST_20250516
["ID","MTS","AMOUNT","RATE_DAILY","PERIOD"]
[361256538,1747398642945,-223.09,0.00013972,2]
[361256539,1747398642954,-450.0,0.00013972,2]
[361256540,1747398642963,-450.0,0.00013972,2]
[361256541,1747398642973,-764.88,0.00013972,2]
[361256542,1747398642982,-850.95,0.00013972,2]
[361256543,1747398642991,-513.21,0.00013972,2]
[361256545,1747398643001,-450.0,0.00013972,2]
[361256546,1747398643011,-450.0,0.00013972,2]
[361256547,1747398643020,-1242.88,0.00013972,2]
[361256548,1747398643029,-559.45,0.00013972,2]
[361256549,1747398643039,-450.0,0.00013972,2]
[361256550,1747398643050,-450.0,0.00013972,2]
[361256551,1747398643062,-450.0,0.00013972,2]
[361256552,1747398643071,-657.69,0.00013972,2]
[361256553,1747398643081,-450.0,0.00013972,2]
[361256554,1747398643090,-450.0,0.00013972,2]
[361256555,1747398643100,-450.0,0.00013972,2]
[361256556,1747398643110,-415.62,0.00013972,2]
[361256557,1747398643120,-450.0,0.00013972,2]
[361256558,1747398643129,-450.0,0.00013972,2]
[361256559,1747398643139,-450.0,0.00013972,2]
[361256560,1747398643148,-450.0,0.00013972,2]
[361256561,1747398643158,-471.84,0.00013972,2]
[361256562,1747398643168,-906.95,0.00013972,2]
[361256563,1747398643177,-490.11,0.00013972,2]
[361256564,1747398643187,-353.81757678,0.00013972,2]
[361256565,1747398643197,-572.04,0.00013972,2]
[361256566,1747398643207,-450.0,0.00013972,2]
[361256567,1747398643216,-450.0,0.00013972,2]
[361256568,1747398643226,-450.0,0.00013972,2]
[361256569,1747398643236,-450.0,0.00013972,2]
[361256570,1747398643246,-450.0,0.00013972,2]
[361256571,1747398643255,-451.87,0.00013972,2]
[361256572,1747398643265,-450.0,0.00013972,2]
[361256573,1747398643276,-450.0,0.00013972,2]
[361256574,1747398643285,-450.0,0.00013972,2]
[361256575,1747398643294,-240.46,0.00013972,2]
[361256576,1747398643304,-450.0,0.00013972,2]
[361256577,1747398643317,-828.0,0.00013972,2]
[361256578,1747398643327,-450.0,0.00013972,2]
[361256579,1747398643336,-450.0,0.00013972,2]
[361256580,1747398643346,-450.0,0.00013972,2]
[361256581,1747398643356,-592.38852056,0.00013972,2]
[361256582,1747398643366,-450.0,0.00013972,2]
[361256583,1747398643376,-450.0,0.00013972,2]
[361256584,1747398643385,-1539.0,0.00014,2]
[361256585,1747398643394,-1539.0,0.00014,2]
[361256586,1747398643404,-1539.0,0.00014,2]
[361256587,1747398643413,-1539.0,0.00014,2]
[361256588,1747398643423,-1539.0,0.00014,2]
[361256589,1747398643432,-1539.0,0.00014,2]
[361256590,1747398643442,-1539.0,0.00014,2]
[361256591,1747398643453,-1539.0,0.00014,2]
[361256592,1747398643464,-1539.0,0.00014,2]
[361256593,1747398643474,-1539.0,0.00014,2]
[361256594,1747398643483,-404.0,0.00014046,2]
[361256595,1747398643494,-2236.0,0.00014046,2]
[361256596,1747398643504,-707.0,0.00014046,2]
[361256597,1747398643513,-639.0,0.000141,2]
[361256598,1747398643523,-450.0,0.00014109,2]
[361256599,1747398643534,-450.0,0.00014109,2]
[361256600,1747398643544,-450.0,0.00014109,2]
[361256601,1747398643554,-412.12,0.00014109,2]
[361256602,1747398643565,-450.0,0.00014109,2]
[361256603,1747398643575,-444.22562491,0.00014109,2]
[361256604,1747398643584,-450.0,0.00014109,2]
[361256605,1747398643594,-234.36,0.00014109,2]
[361256606,1747398643603,-450.0,0.00014109,2]
[361256607,1747398643613,-471.14,0.00014109,2]
[361256608,1747398643622,-184.97,0.00014109,2]
[361256609,1747398643632,-450.0,0.00014109,2]
[361256610,1747398643641,-622.44,0.00014109,2]
[361256611,1747398643651,-1963.7,0.00014109,2]
[361256612,1747398643660,-523.84,0.00014109,2]
[361256613,1747398643671,-450.0,0.00014109,2]
[361256614,1747398643680,-851.75,0.00014109,2]
[361256615,1747398643689,-538.24,0.00014109,2]
[361256616,1747398643699,-450.0,0.00014109,2]
[361256617,1747398643708,-1883.22,0.00014109,2]
[361256618,1747398643755,-1028.76,0.00014109,2]
[361256619,1747398643764,-450.0,0.00014109,2]
[361256620,1747398643773,-2633.32,0.00014109,2]
[361256621,1747398643784,-450.0,0.00014109,2]
[361256622,1747398643793,-521.56,0.00014109,2]
[361256623,1747398643802,-450.0,0.00014109,2]
[361256624,1747398643813,-266.43570313,0.00014109,2]
[361256625,1747398643822,-450.0,0.00014109,2]
[361256626,1747398643832,-450.0,0.00014109,2]
[361256627,1747398643841,-764.88,0.00014109,2]
[361256628,1747398643851,-850.95,0.00014109,2]
[361256629,1747398643860,-513.21,0.00014109,2]
[361256630,1747398643870,-450.0,0.00014109,2]
[361256631,1747398643879,-419.96398025,0.00014109,2]
[361256632,1747398643888,-1242.88,0.00014109,2]
[361256633,1747398643898,-559.45,0.00014109,2]
[361256634,1747398643907,-450.0,0.00014109,2]
[361256635,1747398643917,-450.0,0.00014109,2]
[361256636,1747398643927,-450.0,0.00014109,2]
[361256637,1747398643936,-657.69,0.00014109,2]
[361256638,1747398643946,-450.0,0.00014109,2]
[361256639,1747398643955,-450.0,0.00014109,2]
[361256640,1747398643965,-450.0,0.00014109,2]
[361256641,1747398643974,-450.0,0.00014109,2]
[361256642,1747398643983,-450.0,0.00014109,2]
[361256643,1747398643992,-450.0,0.00014109,2]
[361256644,1747398644001,-450.0,0.00014109,2]
[361256645,1747398644011,-471.84,0.00014109,2]
[361256646,1747398644020,-906.95,0.00014109,2]
[361256647,1747398644029,-490.11,0.00014109,2]
[361256648,1747398644039,-572.04,0.00014109,2]
[361256649,1747398644048,-450.0,0.00014109,2]
[361256650,1747398644058,-450.0,0.00014109,2]
[361256651,1747398644068,-450.0,0.00014109,2]
[361256652,1747398644077,-450.0,0.00014109,2]
[361256653,1747398644087,-450.0,0.00014109,2]
[361256654,1747398644096,-451.87,0.00014109,2]
[361256655,1747398644106,-450.0,0.00014109,2]
[361256656,1747398644115,-450.0,0.00014109,2]
[361256657,1747398644124,-450.0,0.00014109,2]
[361256658,1747398644134,-450.0,0.00014109,2]
[361256659,1747398644143,-828.0,0.00014109,2]
[361256660,1747398644153,-450.0,0.00014109,2]
[361256661,1747398644163,-450.0,0.00014109,2]
[361256662,1747398644172,-450.0,0.00014109,2]
[361256663,1747398644181,-450.0,0.00014109,2]
[361256664,1747398644190,-290.17058502,0.00014111,2]
[361256665,1747398644200,-2200.0,0.00014147,2]
[361256666,1747398644209,-587.278,0.00014192,2]
[361256667,1747398644219,-251.95319278,0.00014209,2]
[361256668,1747398644228,-165.47,0.00014246,2]
[361256669,1747398644238,-450.0,0.00014246,2]
[361256670,1747398644247,-450.0,0.00014246,2]
[361256671,1747398644256,-450.0,0.00014246,2]
[361256672,1747398644265,-450.0,0.00014246,2]
[361256673,1747398644274,-450.0,0.00014246,2]
[361256674,1747398644283,-450.0,0.00014246,2]
[361256675,1747398644292,-622.44,0.00014246,2]
[361256676,1747398644302,-1963.7,0.00014246,2]
[361256677,1747398644312,-523.84,0.00014246,2]
[361256678,1747398644321,-450.0,0.00014246,2]
[361256679,1747398644331,-851.75,0.00014246,2]
[361256680,1747398644340,-538.24,0.00014246,2]
[361256681,1747398644349,-429.2723096,0.00014246,2]
[361256682,1747398644359,-1883.22,0.00014246,2]
[361256683,1747398644367,-1028.76,0.00014246,2]
[361256684,1747398644376,-450.0,0.00014246,2]
[361256685,1747398644385,-2633.32,0.00014246,2]
[361256686,1747398644395,-450.0,0.00014246,2]
[361256687,1747398644404,-521.56,0.00014246,2]
[361256688,1747398644412,-450.0,0.00014246,2]
[361256689,1747398644421,-450.0,0.00014246,2]
[361256690,1747398644431,-450.0,0.00014246,2]
[361256691,1747398644441,-764.88,0.00014246,2]
[361256692,1747398644452,-850.95,0.00014246,2]
[361256693,1747398644464,-513.21,0.00014246,2]
[361256694,1747398644473,-450.0,0.00014246,2]
[361256695,1747398644483,-1242.88,0.00014246,2]
[361256696,1747398644494,-559.45,0.00014246,2]
[361256697,1747398644504,-153.67,0.00014246,2]
[361256698,1747398644513,-450.0,0.00014246,2]
[361256700,1747398644522,-450.0,0.00014246,2]
[361256702,1747398644533,-657.69,0.00014246,2]
[361256704,1747398644542,-450.0,0.00014246,2]
[361256705,1747398644552,-450.0,0.00014246,2]
[361256708,1747398644562,-450.0,0.00014246,2]
[361256709,1747398644571,-450.0,0.00014246,2]
[361256711,1747398644581,-450.0,0.00014246,2]
[361256714,1747398644590,-450.0,0.00014246,2]
[361256715,1747398644599,-450.0,0.00014246,2]
[361256717,1747398644608,-471.84,0.00014246,2]
[361256719,1747398644617,-906.95,0.00014246,2]
[361256721,1747398644627,-490.11,0.00014246,2]
[361256723,1747398644636,-572.04,0.00014246,2]
[361256725,1747398644646,-450.0,0.00014246,2]
[361256727,1747398644655,-450.0,0.00014246,2]
[361256729,1747398644664,-473.97,0.00014246,2]
[361256731,1747398644674,-313.22601605,0.00014246,2]
[361256733,1747398644692,-450.0,0.00014246,2]
[361256736,1747398644702,-451.87,0.00014246,2]
[361256737,1747398644711,-298.0,0.00014246,2]
[361256739,1747398644720,-450.0,0.00014246,2]
[361256742,1747398644730,-450.0,0.00014246,2]
[361256744,1747398644740,-450.0,0.00014246,2]
[361256746,1747398644749,-828.0,0.00014246,2]
[361256748,1747398644760,-450.0,0.00014246,2]
[361256750,1747398644769,-150.4,0.00014246,2]
[361256752,1747398644779,-173.4492424,0.00014246,2]
[361256754,1747398644788,-450.0,0.00014246,2]
[361256756,1747398644797,-290.17058502,0.00014283,2]
[361256757,1747398644806,-158.235783,0.0001431,2]
[361256760,1747398644818,-157.828058,0.0001431,2]
[361256762,1747398644828,-450.0,0.00014383,2]
[361256764,1747398644837,-450.0,0.00014383,2]
[361256766,1747398644846,-450.0,0.00014383,2]
[361256768,1747398644856,-450.0,0.00014383,2]
[361256770,1747398644866,-450.0,0.00014383,2]
[361256771,1747398644875,-450.0,0.00014383,2]
[361256773,1747398644885,-622.44,0.00014383,2]
[361256776,1747398644894,-1963.7,0.00014383,2]
[361256777,1747398644905,-523.84,0.00014383,2]
[361256780,1747398644915,-450.0,0.00014383,2]
[361256782,1747398644925,-851.75,0.00014383,2]
[361256783,1747398644934,-538.24,0.00014383,2]
[361256786,1747398644944,-1883.22,0.00014383,2]
[361256788,1747398644953,-1028.76,0.00014383,2]
[361256790,1747398644963,-450.0,0.00014383,2]
[361256792,1747398644972,-2633.32,0.00014383,2]
[361256793,1747398644982,-450.0,0.00014383,2]
[361256795,1747398644991,-521.56,0.00014383,2]
[361256797,1747398645000,-570.77867865,0.00014383,2]
[361256799,1747398645010,-450.0,0.00014383,2]
[361256801,1747398645019,-450.0,0.00014383,2]
[361256803,1747398645028,-764.88,0.00014383,2]
[361256805,1747398645037,-850.95,0.00014383,2]
[361256807,1747398645047,-513.21,0.00014383,2]
[361256809,1747398645056,-450.0,0.00014383,2]
[361256811,1747398645067,-1242.88,0.00014383,2]
[361256813,1747398645076,-559.45,0.00014383,2]
[361256815,1747398645085,-450.0,0.00014383,2]
[361256818,1747398645095,-450.0,0.00014383,2]
[361256820,1747398645104,-657.69,0.00014383,2]
[361256822,1747398645113,-450.0,0.00014383,2]
[361256824,1747398645122,-450.0,0.00014383,2]
[361256825,1747398645131,-450.0,0.00014383,2]
[361256827,1747398645140,-450.0,0.00014383,2]
[361256829,1747398645150,-450.0,0.00014383,2]
[361256831,1747398645159,-450.0,0.00014383,2]
[361256834,1747398645168,-450.0,0.00014383,2]
[361256836,1747398645177,-471.84,0.00014383,2]
[361256837,1747398645187,-906.95,0.00014383,2]
[361256839,1747398645196,-490.11,0.00014383,2]
[361256842,1747398645205,-572.04,0.00014383,2]
[361256843,1747398645214,-450.0,0.00014383,2]
[361256846,1747398645224,-450.0,0.00014383,2]
[361256847,1747398645233,-450.0,0.00014383,2]
[361256850,1747398645243,-451.87,0.00014383,2]
[361256852,1747398645254,-450.0,0.00014383,2]
[361256854,1747398645263,-450.0,0.00014383,2]
[361256856,1747398645273,-450.0,0.00014383,2]
[361256858,1747398645282,-828.0,0.00014383,2]
[361256860,1747398645292,-450.0,0.00014383,2]
[361256862,1747398645301,-450.0,0.00014383,2]
[361256864,1747398645311,-450.0,0.0001452,2]
[361256866,1747398645321,-450.0,0.0001452,2]
[361256868,1747398645331,-450.0,0.0001452,2]
[361256870,1747398645341,-450.0,0.0001452,2]
[361256871,1747398645350,-450.0,0.0001452,2]
[361256874,1747398645360,-450.0,0.0001452,2]
[361256876,1747398645369,-622.44,0.0001452,2]
[361256878,1747398645379,-1963.7,0.0001452,2]
[361256880,1747398645388,-523.84,0.0001452,2]
[361256882,1747398645398,-450.0,0.0001452,2]
[361256884,1747398645408,-851.75,0.0001452,2]
[361256886,1747398645417,-538.24,0.0001452,2]
[361256888,1747398645427,-1883.22,0.0001452,2]
[361256890,1747398645437,-1028.76,0.0001452,2]
[361256892,1747398645446,-450.0,0.0001452,2]
[361256894,1747398645458,-2633.32,0.0001452,2]
[361256896,1747398645468,-450.0,0.0001452,2]
[361256898,1747398645478,-521.56,0.0001452,2]
[361256900,1747398645489,-450.0,0.0001452,2]
[361256902,1747398645498,-450.0,0.0001452,2]
[361256904,1747398645508,-764.88,0.0001452,2]
[361256906,1747398645519,-850.95,0.0001452,2]
[361256908,1747398645529,-513.21,0.0001452,2]
[361256910,1747398645539,-450.0,0.0001452,2]
[361256912,1747398645549,-1242.88,0.0001452,2]
[361256914,1747398645559,-559.45,0.0001452,2]
[361256916,1747398645569,-450.0,0.0001452,2]
[361256918,1747398645578,-450.0,0.0001452,2]
[361256920,1747398645587,-657.69,0.0001452,2]
[361256922,1747398645597,-450.0,0.0001452,2]
[361256924,1747398645606,-450.0,0.0001452,2]
[361256926,1747398645616,-375.72138424,0.0001452,2]
[361256929,1747398645626,-450.0,0.0001452,2]
[361256931,1747398645635,-450.0,0.0001452,2]
[361256933,1747398645644,-450.0,0.0001452,2]
[361256935,1747398645654,-450.0,0.0001452,2]
[361256937,1747398645663,-471.84,0.0001452,2]
[361256938,1747398645673,-906.95,0.0001452,2]
[361256941,1747398645683,-490.11,0.0001452,2]
[361256943,1747398645692,-572.04,0.0001452,2]
[361256945,1747398645701,-450.0,0.0001452,2]
[361256947,1747398645711,-450.0,0.0001452,2]
[361256949,1747398645720,-450.0,0.0001452,2]
[361256951,1747398645729,-451.87,0.0001452,2]
[361256953,1747398645739,-450.0,0.0001452,2]
[361256955,1747398645748,-450.0,0.0001452,2]
[361256957,1747398645757,-450.0,0.0001452,2]
[361256959,1747398645766,-828.0,0.0001452,2]
[361256961,1747398645775,-450.0,0.0001452,2]
[361256963,1747398645784,-450.0,0.0001452,2]
[361256965,1747398645794,-251.95319278,0.00014555,2]
[361256967,1747398645803,-450.0,0.00014657,2]
[361256968,1747398645813,-372.65228526,0.00014657,2]
[361256971,1747398645822,-450.0,0.00014657,2]
[361256973,1747398645831,-450.0,0.00014657,2]
[361256975,1747398645841,-475.62825981,0.00014657,2]
[361256977,1747398645851,-450.0,0.00014657,2]
[361256979,1747398645860,-622.44,0.00014657,2]
[361256981,1747398645870,-1963.7,0.00014657,2]
[361256983,1747398645879,-523.84,0.00014657,2]
[361256985,1747398645888,-450.0,0.00014657,2]
[361256987,1747398645897,-851.75,0.00014657,2]
[361256990,1747398645908,-538.24,0.00014657,2]
[361256992,1747398645917,-1883.22,0.00014657,2]
[361256994,1747398645927,-1028.76,0.00014657,2]
[361256996,1747398645936,-450.0,0.00014657,2]
[361256998,1747398645945,-2633.32,0.00014657,2]
[361257000,1747398645954,-450.0,0.00014657,2]
[361257002,1747398645964,-521.56,0.00014657,2]
[361257004,1747398645973,-308.59154655,0.00014657,2]
[361257006,1747398645982,-450.0,0.00014657,2]
[361257008,1747398645992,-764.88,0.00014657,2]
[361257010,1747398646001,-850.95,0.00014657,2]
[361257012,1747398646010,-513.21,0.00014657,2]
[361257014,1747398646020,-280.27662007,0.00014657,2]
[361257015,1747398646029,-1242.88,0.00014657,2]
[361257017,1747398646039,-559.45,0.00014657,2]
[361257019,1747398646048,-450.0,0.00014657,2]
[361257021,1747398646058,-450.0,0.00014657,2]
[361257023,1747398646067,-657.69,0.00014657,2]
[361257025,1747398646077,-450.0,0.00014657,2]
[361257027,1747398646086,-450.0,0.00014657,2]
[361257029,1747398646096,-450.0,0.00014657,2]
[361257031,1747398646106,-450.0,0.00014657,2]
[361257034,1747398646115,-150.87812765,0.00014657,2]
[361257036,1747398646125,-450.0,0.00014657,2]
[361257038,1747398646134,-471.84,0.00014657,2]
[361257040,1747398646144,-906.95,0.00014657,2]
[361257042,1747398646153,-490.11,0.00014657,2]
[361257044,1747398646162,-572.04,0.00014657,2]
[361257046,1747398646172,-450.0,0.00014657,2]
[361257048,1747398646181,-450.0,0.00014657,2]
[361257050,1747398646191,-450.0,0.00014657,2]
[361257052,1747398646200,-451.87,0.00014657,2]
[361257053,1747398646210,-450.0,0.00014657,2]
[361257055,1747398646219,-450.0,0.00014657,2]
[361257058,1747398646230,-450.0,0.00014657,2]
[361257059,1747398646239,-828.0,0.00014657,2]
[361257062,1747398646249,-450.0,0.00014657,2]
[361257063,1747398646259,-587.0,0.00014778,2]
[361257065,1747398646269,-450.0,0.00014794,2]
[361257067,1747398646278,-450.0,0.00014794,2]
[361257069,1747398646287,-450.0,0.00014794,2]
[361257071,1747398646297,-450.0,0.00014794,2]
[361257073,1747398646306,-622.44,0.00014794,2]
[361257075,1747398646317,-1963.7,0.00014794,2]
[361257077,1747398646326,-523.84,0.00014794,2]
[361257079,1747398646336,-450.0,0.00014794,2]
[361257081,1747398646346,-851.75,0.00014794,2]
[361257084,1747398646357,-538.24,0.00014794,2]
[361257086,1747398646367,-1883.22,0.00014794,2]
[361257088,1747398646377,-1028.76,0.00014794,2]
[361257090,1747398646388,-450.0,0.00014794,2]
[361257092,1747398646398,-2633.32,0.00014794,2]
[361257094,1747398646407,-450.0,0.00014794,2]
[361257096,1747398646417,-521.56,0.00014794,2]
[361257098,1747398646426,-450.0,0.00014794,2]
[361257100,1747398646437,-764.88,0.00014794,2]
[361257102,1747398646446,-850.95,0.00014794,2]
[361257104,1747398646459,-513.21,0.00014794,2]
[361257106,1747398646469,-1242.88,0.00014794,2]
[361257108,1747398646479,-559.45,0.00014794,2]
[361257110,1747398646488,-450.0,0.00014794,2]
[361257112,1747398646499,-573.89481456,0.00014794,2]
[361257114,1747398646509,-657.69,0.00014794,2]
[361257116,1747398646518,-450.0,0.00014794,2]
[361257118,1747398646529,-450.0,0.00014794,2]
[361257120,1747398646539,-450.0,0.00014794,2]
[361257122,1747398646549,-450.0,0.00014794,2]
[361257124,1747398646559,-450.0,0.00014794,2]
[361257126,1747398646569,-471.84,0.00014794,2]
[361257128,1747398646579,-906.95,0.00014794,2]
[361257130,1747398646588,-490.11,0.00014794,2]
[361257132,1747398646598,-572.04,0.00014794,2]
[361257134,1747398646607,-450.0,0.00014794,2]
[361257136,1747398646616,-450.0,0.00014794,2]
[361257138,1747398646626,-450.0,0.00014794,2]
[361257142,1747398646645,-451.87,0.00014794,2]
[361257144,1747398646656,-450.0,0.00014794,2]
[361257146,1747398646668,-450.0,0.00014794,2]
[361257148,1747398646678,-450.0,0.00014794,2]
[361257150,1747398646689,-828.0,0.00014794,2]
[361257152,1747398646699,-450.0,0.00014794,2]
[361257155,1747398646710,-2000.0,0.000148,2]
[361257157,1747398646720,-1806.479984,0.00014814,2]
[361257159,1747398646730,-38670.24959199,0.0001485,2]
[361257161,1747398646740,-500.0,0.00014876,2]
[361257163,1747398646750,-39378.3881881,0.00014889,2]
[361257179,1747398647118,-167.713464,0.00013694,2]
[361257180,1747398647128,-499.08,0.00013698,2]
[361257181,1747398647139,-370.91870589,0.00014109,2]
[361257182,1747398647148,-450.0,0.00014657,2]
[361257183,1747398647158,-450.0,0.00014794,2]
[361257184,1747398647168,-2376.39465761,0.00014889,2]
[361257734,1747399216610,5074.18,0.00027397,120]
[361257771,1747399832855,-5000.0,0.0001356,14]
[361257772,1747399832865,-300.0,0.00013697,2]
[361257773,1747399832875,-3000.0,0.00013698,4]
[361257774,1747399832885,-450.0,0.00013698,2]
[361257775,1747399832894,-400.0,0.00013698,2]
[361257776,1747399832904,-265.26388112,0.00013698,2]
[361257777,1747399832914,-466.2,0.00013698,2]
[361257778,1747399832923,-450.0,0.00013698,2]
[361257779,1747399832932,-450.0,0.00013698,2]
[361257780,1747399832941,-160.0,0.00013698,2]
[361257781,1747399832951,-461.23,0.00013698,2]
[361257782,1747399832960,-450.0,0.00013698,2]
[361257783,1747399832969,-450.0,0.00013698,2]
[361257784,1747399832978,-450.0,0.00013698,2]
[361257785,1747399832988,-450.0,0.00013698,2]
[361257786,1747399832997,-450.0,0.00013698,2]
[361257787,1747399833007,-450.0,0.00013698,2]
[361257788,1747399833017,-450.0,0.00013698,2]
[361257789,1747399833026,-450.0,0.00013698,2]
[361257790,1747399833036,-450.0,0.00013698,2]
[361257791,1747399833046,-450.0,0.00013698,2]
[361257792,1747399833055,-1507.84,0.00013698,2]
[361257793,1747399833065,-642.98,0.00013698,2]
[361257794,1747399833075,-450.0,0.00013698,2]
[361257795,1747399833085,-450.0,0.00013698,2]
[361257796,1747399833095,-450.0,0.00013698,2]
[361257797,1747399833105,-450.0,0.00013698,2]
[361257798,1747399833115,-532.35,0.00013698,2]
[361257799,1747399833125,-450.0,0.00013698,2]
[361257800,1747399833134,-336.33765584,0.00013698,2]
[361257854,1747399838549,-113.66234416,0.00013698,2]
[361257856,1747399838559,-224.24726365,0.00013698,2]
[361257863,1747399838617,-225.75273635,0.00013698,2]
[361257865,1747399838627,-403.17370202,0.00013698,2]
[361257866,1747399838637,-252.7196056,0.00013698,2]
[361257867,1747399838647,-183.76911132,0.00013698,2]
[361258220,1747399847118,-993.24088868,0.00013698,2]
[361258221,1747399847128,-450.0,0.00013698,2]
[361258222,1747399847137,-478.05,0.00013698,2]
[361258223,1747399847147,-1645.83,0.00013698,2]
[361258224,1747399847156,-450.0,0.00013698,2]
[361258225,1747399847169,-450.0,0.00013698,2]
[361258226,1747399847178,-450.0,0.00013698,2]
[361258227,1747399847187,-450.0,0.00013698,2]
[361258228,1747399847196,-450.0,0.00013698,2]
[361258229,1747399847207,-776.8,0.00013698,2]
[361258230,1747399847215,-450.0,0.00013698,2]
[361258231,1747399847224,-450.0,0.00013698,2]
[361258232,1747399847234,-450.0,0.00013698,2]
[361258233,1747399847244,-450.0,0.00013698,2]
[361258234,1747399847254,-370.42812331,0.00013698,2]
[361258235,1747399847263,-450.0,0.00013698,2]
[361258236,1747399847272,-450.0,0.00013698,2]
[361258238,1747399847282,-531.85,0.00013698,2]
[361258240,1747399847291,-450.0,0.00013698,2]
[361258242,1747399847300,-450.0,0.00013698,2]
[361258244,1747399847309,-566.84,0.00013698,2]
[361258246,1747399847318,-450.0,0.00013698,2]
[361258248,1747399847327,-450.0,0.00013698,2]
[361258250,1747399847338,-450.0,0.00013698,2]
[361258251,1747399847347,-450.0,0.00013698,2]
[361258252,1747399847356,-450.0,0.00013698,2]
[361258253,1747399847367,-450.0,0.00013698,2]
[361258254,1747399847377,-450.0,0.00013698,2]
[361258255,1747399847386,-450.0,0.00013698,2]
[361258256,1747399847396,-450.0,0.00013698,2]
[361258257,1747399847405,-450.0,0.00013698,2]
[361258258,1747399847415,-450.0,0.00013698,2]
[361258259,1747399847424,-450.0,0.00013698,2]
[361258260,1747399847433,-450.0,0.00013698,2]
[361258261,1747399847442,-450.0,0.00013698,2]
[361258263,1747399847452,-450.0,0.00013698,2]
[361258265,1747399847461,-1445.01,0.00013698,2]
[361258267,1747399847471,-450.0,0.00013698,2]
[361258269,1747399847480,-450.0,0.00013698,2]
[361258271,1747399847489,-616.19,0.00013698,2]
[361258273,1747399847498,-450.0,0.00013698,2]
[361258275,1747399847507,-9630.88901199,0.00013698,2]
[361258277,1747399847516,-699.933449,0.00013699,2]
[361258279,1747399847526,-160.0,0.00013777,2]
[361258281,1747399847535,-422.39640784,0.00013777,2]
[361258283,1747399847544,-212.26722696,0.00013777,2]
[361258285,1747399847553,-998.24360331,0.00013777,2]
[361258287,1747399847562,-160.0,0.00013777,2]
[361258289,1747399847571,-160.0,0.00013777,2]
[361258291,1747399847580,-160.0,0.00013777,2]
[361258293,1747399847590,-160.0,0.00013777,2]
[361258295,1747399847599,-160.0,0.00013777,2]
[361258298,1747399847616,-450.0,0.00013835,2]
[361258300,1747399847626,-450.0,0.00013835,2]
[361258302,1747399847635,-450.0,0.00013835,2]
[361258304,1747399847644,-450.0,0.00013835,2]
[361258306,1747399847654,-450.0,0.00013835,2]
[361258307,1747399847664,-450.0,0.00013835,2]
[361258310,1747399847674,-450.0,0.00013835,2]
[361258311,1747399847683,-450.0,0.00013835,2]
[361258313,1747399847692,-532.35,0.00013835,2]
[361258315,1747399847701,-1177.01,0.00013835,2]
[361258317,1747399847711,-478.05,0.00013835,2]
[361258319,1747399847720,-1645.83,0.00013835,2]
[361258321,1747399847729,-450.0,0.00013835,2]
[361258324,1747399847742,-450.0,0.00013835,2]
[361258326,1747399847752,-450.0,0.00013835,2]